bitfinex-derivatives/quotes_BTCF0:USTF0_20251002
["timestamp","ask_amount","ask_price","bid_price","bid_amount"]
[1759431259603,0.1061886,120550.0,120540.0,0.3967]
[1759431259909,0.8804286,120550.0,120540.0,0.3967]
[1759431260112,0.8935886,120550.0,120540.0,0.38333]
[1759431261206,0.1193641,120530.0,120510.0,0.3608]
[1759431261412,1.24084084,120530.0,120520.0,0.3608]
[1759431261611,0.8935588,120530.0,120520.0,0.38333]
[1759431262910,0.8935588,120530.0,120520.0,0.3608]
[1759431264509,1.24926242,120530.0,120520.0,0.3608]
[1759431264813,1.24926242,120530.0,120520.0,0.38333]
[1759431264814,0.8935588,120530.0,120520.0,0.38333]
[1759431265409,0.1197457,120520.0,120510.0,0.38252]
[1759431267304,0.77296,120520.0,120510.0,0.82579324]
[1759431267509,0.77296,120520.0,120510.0,0.74287204]
[1759431267707,0.1190764,120540.0,120530.0,0.02172]
[1759431267908,0.8920364,120540.0,120530.0,0.38252]
[1759431268816,0.8919564,120540.0,120530.0,0.38252]
[1759431269003,0.8919564,120540.0,120510.0,0.72115204]
[1759431269004,0.0829089,120530.0,120520.0,0.3608]
[1759431269209,0.1197389,120530.0,120520.0,0.38252]
[1759431269509,0.46702094,120530.0,120520.0,0.3608]
[1759431269709,0.1197458,120520.0,120510.0,0.3608]
[1759431269909,1.23990784,120520.0,120510.0,0.3608]
[1759431270104,0.8926258,120520.0,120510.0,0.38252]
[1759431270509,0.80971,120520.0,120510.0,0.38252]
[1759431270708,0.02301,120520.0,120510.0,0.39559]
[1759431270912,0.1190765,120540.0,120530.0,0.02172]
[1759431271117,0.7401165,120540.0,120530.0,0.02172]
[1759431271316,0.7605902,120540.0,120530.0,0.02172]
[1759431271614,0.9125902,120540.0,120530.0,0.02172]
[1759431271911,0.8921165,120540.0,120530.0,0.02172]
[1759431272108,0.1190765,120540.0,120530.0,0.02172]
[1759431272514,0.8920365,120540.0,120530.0,0.02172]
[1759431272710,0.8920365,120540.0,120530.0,0.38252]
[1759431273105,0.91252481,120540.0,120530.0,0.38252]
[1759431273815,1.25980685,120540.0,120530.0,0.3608]
[1759431275213,0.1197389,120530.0,120520.0,0.3608]
[1759431275409,0.46702094,120530.0,120520.0,0.3608]
[1759431275808,0.48753583,120530.0,120520.0,0.3608]
[1759431276005,0.1059258,120520.0,120510.0,0.3608]
[1759431276209,0.1059258,120520.0,120500.0,0.36089328]
[1759431276210,0.1197526,120510.0,120500.0,8e-08]
[1759431276512,0.1197733,120480.0,120470.0,0.00041]
[1759431276710,0.1059739,120450.0,120440.0,0.39559]
[1759431276916,0.8797739,120450.0,120440.0,0.39559]
[1759431277221,0.1198146,120420.0,120410.0,0.38252]
[1759431277414,0.0829984,120400.0,120390.0,0.37387]
[1759431277616,0.0829984,120400.0,120390.0,0.3608]
[1759431277617,0.0205343,120400.0,120390.0,0.3608]
[1759431277917,0.8573184,120400.0,120390.0,0.37387]
[1759431278319,0.0829984,120400.0,120390.0,0.37387]
[1759431278514,0.00010176,120420.0,120400.0,0.0960674]
[1759431278719,0.08308636,120420.0,120410.0,0.7216]
[1759431278915,1.25744543,120420.0,120410.0,0.7216]
[1759431279121,0.49690543,120420.0,120410.0,0.7216]
[1759431279319,1.27122543,120420.0,120410.0,0.7216]
[1759431279513,0.00010176,120420.0,120410.0,0.8045915]
[1759431279722,0.25802176,120420.0,120410.0,1.61766057]
[1759431280021,0.34100636,120420.0,120410.0,0.73467]
[1759431280221,0.34100636,120420.0,120410.0,0.7216]
[1759431280515,0.00010176,120420.0,120410.0,1.21766057]
[1759431280718,0.082972,120440.0,120420.0,0.096051]
[1759431280921,0.49679107,120440.0,120430.0,0.7216]
[1759431281117,0.082972,120440.0,120430.0,0.7216]
[1759431281323,0.77492,120440.0,120430.0,1.53466907]
[1759431281517,0.8578909,120440.0,120430.0,1.53466907]
[1759431281719,0.0829709,120440.0,120430.0,1.13467]
[1759431282019,0.8331709,120440.0,120430.0,1.13467]
[1759431282414,0.8469909,120440.0,120430.0,0.7216]
[1759431282618,0.0829709,120440.0,120430.0,0.7216]
[1759431282817,0.8579309,120440.0,120430.0,0.73467]
[1759431283017,0.8579309,120440.0,120430.0,0.7216]
[1759431283218,0.8809409,120440.0,120430.0,0.7216]
[1759431283524,0.8809409,120440.0,120430.0,0.74332]
[1759431283718,0.1059809,120440.0,120430.0,0.74332]
[1759431284120,0.8812609,120440.0,120430.0,0.74332]
[1759431284425,0.8792609,120440.0,120430.0,0.38252]
[1759431284823,0.1059877,120430.0,120420.0,0.38252]
[1759431285018,0.51980677,120430.0,120420.0,0.38252]
[1759431285419,0.1198077,120430.0,120420.0,0.38252]
[1759431287021,0.1059877,120430.0,120420.0,0.38252]
[1759431287214,0.0829777,120430.0,120420.0,0.39559]
[1759431287524,0.0967776,120460.0,120430.0,0.01307]
[1759431287827,0.51978667,120460.0,120450.0,0.02172]
[1759431288018,0.119794,120450.0,120440.0,0.3608]
[1759431288214,0.51979307,120450.0,120440.0,0.3608]
[1759431288415,0.0829609,120460.0,120440.0,1.23935927]
[1759431288618,0.1059709,120460.0,120450.0,0.38252]
[1759431288813,1.29506997,120460.0,120450.0,0.38252]
[1759431289021,0.8950709,120460.0,120450.0,0.38252]
[1759431289223,0.1059709,120460.0,120450.0,0.38252]
[1759431289634,0.8812109,120460.0,120450.0,0.39559]
[1759431289924,0.0829544,120470.0,120450.0,0.87855297]
[1759431290124,0.8581944,120470.0,120460.0,0.38252]
[1759431290314,0.0829544,120470.0,120460.0,0.78251907]
[1759431290516,0.8580744,120470.0,120460.0,0.79558907]
[1759431290717,0.0829544,120470.0,120460.0,0.39559]
[1759431290914,0.8509865,120480.0,120470.0,0.03479]
[1759431291122,0.8509865,120480.0,120470.0,0.39559]
[1759431291819,0.8509865,120480.0,120470.0,0.8785402]
[1759431292015,0.0829393,120490.0,120480.0,0.01307]
[1759431292221,0.0829393,120490.0,120480.0,0.87853237]
[1759431292419,0.8583295,120500.0,120490.0,0.1177264]
[1759431292714,0.8583295,120500.0,120490.0,0.39559]
[1759431293919,0.8813395,120500.0,120490.0,0.38252]
[1759431294121,1.29515857,120500.0,120490.0,0.3608]
[1759431294318,0.8951595,120500.0,120490.0,0.38252]
[1759431294517,0.8813395,120500.0,120490.0,0.38252]
[1759431295822,0.8939895,120500.0,120490.0,0.3608]
[1759431296218,1.29398857,120500.0,120490.0,0.3608]
[1759431296926,0.8939895,120500.0,120490.0,0.3608]
[1759431297225,0.8939895,120500.0,120490.0,0.1860782]
[1759431297428,0.8939895,120500.0,120450.0,0.37352]
[1759431297429,0.0829571,120460.0,120450.0,0.37352]
[1759431297727,1.61827617,120460.0,120450.0,0.01272]
[1759431297928,0.0829571,120460.0,120450.0,0.03554]
[1759431298133,0.8605171,120460.0,120450.0,0.03554]
[1759431298527,0.0829571,120460.0,120450.0,0.01272]
[1759431298730,0.8605571,120460.0,120450.0,0.01272]
[1759431298924,0.8605171,120460.0,120450.0,0.39634]
[1759431299322,0.0829571,120460.0,120450.0,0.39634]
[1759431299519,0.77744,120460.0,120450.0,1.27930307]
[1759431299723,0.8603971,120460.0,120450.0,1.27930307]
[1759431299923,0.8603971,120460.0,120450.0,0.879304]
[1759431300326,0.0829571,120460.0,120450.0,0.879304]
[1759431300634,0.8605171,120460.0,120450.0,0.79634]
[1759431301025,0.8605171,120460.0,120450.0,0.39634]
[1759431301219,0.8603571,120460.0,120450.0,0.479304]
[1759431301527,0.48294277,120480.0,120470.0,0.01272]
[1759431301730,0.0829502,120470.0,120460.0,0.387409]
[1759431302432,0.8599902,120470.0,120460.0,0.387409]
[1759431302631,1.25998927,120470.0,120460.0,0.364589]
[1759431302831,1.65998927,120470.0,120460.0,0.364589]
[1759431303333,0.88294927,120470.0,120460.0,0.364589]
[1759431303630,1.65974927,120470.0,120460.0,0.364589]
[1759431303827,1.65978927,120470.0,120460.0,0.364589]
[1759431304027,1.65970927,120470.0,120460.0,0.364589]
[1759431304623,0.4829502,120470.0,120460.0,0.387409]
[1759431304822,0.91141103,120480.0,120460.0,0.87036517]
[1759431304823,0.0829476,120480.0,120460.0,0.87036517]
[1759431305026,0.0829476,120480.0,120470.0,0.39634]
[1759431305432,0.8596276,120480.0,120470.0,0.39634]
[1759431305930,0.0829476,120480.0,120470.0,0.39634]
[1759431306136,0.8594276,120480.0,120470.0,0.39634]
[1759431306331,0.0829476,120480.0,120470.0,0.39634]
[1759431306534,0.8595076,120480.0,120470.0,1.19633907]
[1759431306926,0.8595076,120480.0,120470.0,1.27928927]
[1759431307236,0.8595076,120480.0,120470.0,0.79634]
[1759431307433,0.0829476,120480.0,120470.0,0.8792902]
[1759431307631,0.77656,120480.0,120470.0,0.8792902]
[1759431307832,0.72666,120480.0,120470.0,0.8792902]
[1759431308937,0.809607,120480.0,120470.0,0.8792902]
[1759431310038,0.082947,120480.0,120470.0,0.8792902]
[1759431310338,0.859027,120480.0,120470.0,0.8792902]
[1759431310739,0.859027,120480.0,120470.0,0.79634]
[1759431312231,0.858187,120480.0,120470.0,0.79634]
[1759431313231,0.858187,120480.0,120470.0,0.39634]
[1759431314137,0.858187,120480.0,120470.0,0.4792902]
[1759431314542,0.082947,120480.0,120470.0,0.4792902]
[1759431315041,0.0829419,120490.0,120480.0,0.1184818]
[1759431315343,0.0829344,120500.0,120490.0,0.1184745]
[1759431315538,0.8575344,120500.0,120490.0,0.4792745]
[1759431316438,0.8573744,120500.0,120490.0,0.4792745]
[1759431318043,0.8573744,120500.0,120490.0,0.39634]
[1759431318746,0.8573744,120500.0,120490.0,0.4792764]
[1759431319951,0.0829344,120500.0,120490.0,0.4792764]
[1759431320151,0.8568544,120500.0,120490.0,0.4792764]
[1759431320451,0.8568544,120500.0,120490.0,0.39634]
[1759431321556,0.8568544,120500.0,120490.0,0.4792764]
[1759431321854,0.0829344,120500.0,120490.0,0.4792764]
[1759431322045,0.082919,120520.0,120490.0,0.87927547]
[1759431322246,0.8560459,120510.0,120500.0,0.87926407]
[1759431322856,0.8560459,120510.0,120500.0,0.479265]
[1759431323555,0.0829259,120510.0,120500.0,0.479265]
[1759431323752,0.8557659,120510.0,120500.0,0.479265]
[1759431324153,0.0829196,120520.0,120510.0,0.0829194]
[1759431324460,0.0829158,120530.0,120520.0,0.1178846]
[1759431324645,0.8556758,120530.0,120520.0,0.87868367]
[1759431325553,0.0829158,120530.0,120520.0,0.87868367]
[1759431325759,0.8555158,120530.0,120520.0,1.27868367]
[1759431326955,0.0829063,120540.0,120530.0,0.1182269]
[1759431327156,0.8554663,120540.0,120530.0,0.87902597]
[1759431328256,0.8554663,120540.0,120530.0,0.39612]
[1759431328657,1.25513787,120550.0,120540.0,0.082902]
[1759431328963,0.87564658,120550.0,120540.0,0.39612]
[1759431331058,0.0828951,120550.0,120540.0,0.87902107]
[1759431332562,0.0828951,120550.0,120540.0,0.39612]
[1759431332963,0.0828951,120550.0,120540.0,0.479022]
[1759431333160,0.0828951,120550.0,120540.0,0.39612]
[1759431333860,0.0828951,120550.0,120540.0,0.79611907]
[1759431335665,0.88289417,120550.0,120540.0,0.3742]
[1759431335866,0.4828951,120550.0,120540.0,0.3742]
[1759431336261,0.4828951,120550.0,120540.0,0.0134]
[1759431337462,0.4828951,120550.0,120540.0,0.03532]
[1759431337662,0.0828951,120550.0,120540.0,0.43531907]
[1759431338263,0.0828951,120550.0,120540.0,0.03532]
[1759431338967,0.0828951,120550.0,120540.0,0.0134]
[1759431338968,0.4828951,120550.0,120540.0,0.0134]
[1759431339269,0.4828951,120550.0,120540.0,0.03532]
[1759431339664,0.4828951,120550.0,120540.0,0.0134]
[1759431341668,0.50339898,120550.0,120540.0,0.0134]
[1759431342569,0.10339898,120550.0,120540.0,0.0134]
[1759431343565,0.082902,120540.0,120530.0,0.0134]
[1759431343767,0.0829089,120530.0,120520.0,0.37435]
[1759431344174,0.0829089,120530.0,120520.0,0.39627]
[1759431344565,0.4829089,120530.0,120520.0,0.37435]
[1759431345367,0.50344706,120530.0,120520.0,0.01355]
[1759431345568,0.0829158,120520.0,120510.0,0.01355]
[1759431345768,1.23409396,120520.0,120510.0,0.01355]
[1759431346872,0.87329396,120520.0,120510.0,0.03547]
[1759431347175,0.8527558,120520.0,120510.0,0.74303958]
[1759431347373,0.8527558,120520.0,120510.0,0.39627]
[1759431347772,0.8527558,120520.0,120510.0,0.37435]
[1759431347975,0.8525558,120520.0,120510.0,0.39627]
[1759431348175,0.87309478,120520.0,120510.0,0.39627]
[1759431348370,0.87309882,120520.0,120510.0,0.39627]
[1759431348767,0.10345882,120520.0,120510.0,0.39627]
[1759431348973,0.87289882,120520.0,120510.0,0.39627]
[1759431349367,0.87289882,120520.0,120510.0,0.37435]
[1759431349566,1.63369882,120520.0,120510.0,0.01355]
[1759431350662,1.27289882,120520.0,120510.0,0.01355]
[1759431350873,1.33843546,120520.0,120510.0,0.01355]
[1759431351671,0.56899546,120520.0,120510.0,0.01355]
[1759431351872,1.33807546,120520.0,120510.0,0.01355]
[1759431354279,0.56899546,120520.0,120510.0,0.01355]
[1759431354475,1.33759546,120520.0,120510.0,0.37435]
[1759431354671,0.56899546,120520.0,120510.0,0.37435]
[1759431354876,1.33747546,120520.0,120510.0,0.39627]
[1759431355169,0.56899546,120520.0,120510.0,0.39627]
[1759431355373,0.16899546,120520.0,120510.0,0.74303958]
[1759431355575,0.91689244,120520.0,120510.0,0.74303958]
[1759431355968,0.93743703,120520.0,120510.0,0.74303958]
[1759431356468,0.16899703,120520.0,120510.0,0.74303958]
[1759431356671,0.91689244,120520.0,120510.0,0.74303958]
[1759431359183,0.92523911,120520.0,120510.0,0.03547]
[1759431359480,0.92523911,120520.0,120510.0,0.01355]
[1759431360083,1.30658001,120520.0,120510.0,0.01355]
[1759431360272,1.30658001,120520.0,120500.0,0.0134]
[1759431360273,0.0829226,120510.0,120500.0,0.0134]
[1759431360474,0.0829226,120510.0,120500.0,0.39586]
[1759431360784,0.0829226,120510.0,120500.0,0.74262958]
[1759431361184,0.8508826,120510.0,120500.0,0.74262958]
[1759431361384,0.8508826,120510.0,120500.0,0.39586]
[1759431364681,0.0829226,120510.0,120500.0,1.14262958]
[1759431364986,0.0829226,120510.0,120500.0,0.39586]
[1759431365289,0.0829226,120510.0,120500.0,0.74262958]
[1759431366790,0.1034838,120510.0,120500.0,0.74262958]
[1759431368589,0.8715238,120510.0,120500.0,0.74262958]
[1759431369192,0.8509626,120510.0,120500.0,0.74262958]
[1759431369398,0.87153819,120510.0,120500.0,0.74262958]
[1759431370389,0.8715443,120510.0,120500.0,0.74262958]
[1759431370587,0.8509626,120510.0,120500.0,0.74262958]
[1759431371493,0.87155184,120510.0,120500.0,0.74262958]
[1759431371892,0.10351184,120510.0,120500.0,0.74262958]
[1759431372089,0.87075184,120510.0,120500.0,0.74262958]
[1759431372284,0.10351184,120510.0,120500.0,0.74262958]
[1759431372483,0.87075184,120510.0,120500.0,0.74262958]
[1759431374493,0.87075184,120510.0,120500.0,0.74062958]
[1759431375097,0.10351184,120510.0,120500.0,0.74062958]
[1759431375294,0.87027184,120510.0,120500.0,0.74062958]
[1759431375795,0.10351184,120510.0,120500.0,0.74062958]
[1759431375995,0.87011184,120510.0,120500.0,0.74062958]
[1759431376394,0.10351184,120510.0,120500.0,0.74062958]
[1759431376601,0.87011184,120510.0,120500.0,0.74062958]
[1759431376802,0.10351184,120510.0,120500.0,0.82355908]
[1759431377100,0.87003184,120510.0,120500.0,0.74062958]
[1759431378196,0.87003184,120510.0,120500.0,0.39386]
[1759431378397,0.87003184,120510.0,120500.0,0.74062958]
[1759431378799,0.86995184,120510.0,120500.0,0.82355908]
[1759431379193,0.86995184,120510.0,120500.0,0.74062958]
[1759431379395,0.10351184,120510.0,120500.0,0.82355908]
[1759431379699,0.8489626,120510.0,120500.0,0.82355908]
[1759431380696,0.8489626,120510.0,120500.0,0.80336707]
[1759431380903,0.8489626,120510.0,120500.0,0.81644707]
[1759431381500,0.8489626,120510.0,120500.0,0.87599517]
[1759431382596,0.8489626,120510.0,120500.0,0.81644707]
[1759431382801,0.8711526,120510.0,120500.0,0.81644707]
[1759431383707,0.1051126,120510.0,120500.0,0.81644707]
[1759431383907,0.8483626,120510.0,120500.0,0.81644707]
[1759431384302,0.14895208,120520.0,120510.0,0.01377]
[1759431384505,0.0829157,120520.0,120510.0,1.17741958]
[1759431385901,0.0829157,120520.0,120510.0,1.57741958]
[1759431386099,0.0829157,120520.0,120510.0,2.28327148]
[1759431386304,0.0829157,120520.0,120510.0,1.51787148]
[1759431386606,0.0829157,120520.0,120510.0,1.58452129]
[1759431386910,0.52610756,120520.0,120510.0,0.03555]
[1759431387107,0.0829157,120520.0,120510.0,1.51787148]
[1759431387308,0.65716721,120540.0,120530.0,0.03553]
[1759431387510,0.12609311,120540.0,120530.0,0.35482944]
[1759431387706,0.90050013,120540.0,120530.0,0.35482944]
[1759431387906,0.90050013,120540.0,120530.0,0.03553]
[1759431388807,1.21979957,120540.0,120530.0,0.03553]
[1759431389009,1.19918246,120540.0,120530.0,0.03553]
[1759431389210,0.871676,120540.0,120530.0,0.03553]
[1759431389608,0.871676,120540.0,120530.0,0.39633]
[1759431389811,0.871756,120540.0,120530.0,0.39633]
[1759431390908,1.19105544,120540.0,120530.0,0.39633]
[1759431391712,1.19105544,120540.0,120530.0,0.03553]
[1759431392113,0.42477544,120540.0,120530.0,0.03553]
[1759431392419,1.19041544,120540.0,120530.0,0.39633]
[1759431393912,0.870796,120540.0,120530.0,0.39633]
[1759431396016,0.870476,120540.0,120530.0,0.39633]
[1759431396323,0.870476,120540.0,120530.0,0.71562944]
[1759431396722,0.105476,120540.0,120530.0,0.71562944]
[1759431396925,0.870316,120540.0,120530.0,0.71562944]
[1759431398219,0.870316,120540.0,120530.0,0.39633]
[1759431398620,0.105476,120540.0,120530.0,0.39633]
[1759431398820,0.870076,120540.0,120530.0,0.39633]
[1759431399719,0.105476,120540.0,120530.0,0.4792389]
[1759431400023,0.869876,120540.0,120530.0,0.79853834]
[1759431400324,0.869876,120540.0,120530.0,0.79847226]
[1759431400816,0.869876,120540.0,120530.0,0.71556336]
[1759431402221,1.18910936,120540.0,120530.0,0.71556336]
[1759431403923,0.869876,120540.0,120530.0,0.71556336]
[1759431404120,1.18910936,120540.0,120530.0,0.71556336]
[1759431405524,0.105476,120540.0,120530.0,0.79847226]
[1759431405725,0.869076,120540.0,120530.0,0.79847226]
[1759431406127,0.869076,120540.0,120530.0,0.71556336]
[1759431406824,0.846306,120540.0,120530.0,0.79847226]
[1759431407023,0.846306,120540.0,120530.0,1.19847226]
[1759431407625,0.868876,120540.0,120530.0,0.8792389]
[1759431407820,0.868876,120540.0,120530.0,1.19847226]
[1759431411522,0.082906,120540.0,120530.0,1.51770562]
[1759431411828,0.570506,120540.0,120530.0,1.19847226]
[1759431412929,0.082906,120540.0,120530.0,1.19847226]
[1759431413429,0.082906,120540.0,120530.0,1.51770562]
[1759431413827,0.082906,120540.0,120530.0,1.19847226]
[1759431414527,0.082906,120540.0,120530.0,1.51770562]
[1759431414821,0.8453798,120550.0,120530.0,1.51770562]
[1759431414822,0.8679498,120550.0,120540.0,0.03553]
[1759431415024,0.88856721,120550.0,120540.0,1.03479672]
[1759431416625,1.20780057,120550.0,120540.0,0.71556336]
[1759431417928,1.20780057,120550.0,120540.0,0.79846536]
[1759431419031,0.88856721,120550.0,120540.0,0.79846536]
[1759431419718,0.88856721,120550.0,120540.0,0.39633]
[1759431420031,0.88856721,120550.0,120540.0,0.71556336]
[1759431420626,1.20780057,120550.0,120540.0,0.71556336]
[1759431420826,0.88856721,120550.0,120540.0,1.03479672]
[1759431421828,1.20780057,120550.0,120540.0,0.71556336]
[1759431422231,0.88856721,120550.0,120540.0,0.71556336]
[1759431422534,0.88856721,120550.0,120540.0,1.03479672]
[1759431422833,1.20780057,120550.0,120540.0,0.71556336]
[1759431423628,0.88856721,120550.0,120540.0,0.71556336]
[1759431423827,0.88740721,120550.0,120540.0,1.11769872]
[1759431424632,0.88732721,120550.0,120540.0,1.11769872]
[1759431425630,0.88724721,120550.0,120540.0,1.11769872]
[1759431426329,0.63335395,120570.0,120540.0,1.83693208]
[1759431426330,0.02214954,120570.0,120540.0,1.83693208]
[1759431426530,0.10498263,120580.0,120570.0,0.03692]
[1759431426732,0.10498263,120580.0,120570.0,1.03618672]
[1759431426733,0.08301263,120580.0,120570.0,1.03618672]
[1759431426932,0.08301263,120580.0,120570.0,1.43618672]
[1759431427131,0.10498263,120580.0,120570.0,0.71695336]
[1759431427331,0.42421599,120580.0,120570.0,0.71695336]
[1759431427531,0.42421599,120580.0,120570.0,0.39772]
[1759431427730,0.42421599,120580.0,120570.0,0.71695336]
[1759431427927,0.82421599,120580.0,120570.0,0.39772]
[1759431428130,0.82421599,120580.0,120570.0,0.33316336]
[1759431428334,0.82421599,120580.0,120570.0,0.35615336]
[1759431429235,0.82421599,120580.0,120570.0,0.03692]
[1759431429437,0.1048582,120560.0,120550.0,0.71695336]
[1759431429636,0.8669782,120560.0,120550.0,0.71695336]
[1759431430029,0.1048651,120550.0,120540.0,0.71618336]
[1759431430326,0.42409846,120550.0,120540.0,0.71618336]
[1759431430531,0.82409846,120550.0,120540.0,0.03615]
[1759431430731,0.104872,120540.0,120530.0,0.71695336]
[1759431430929,0.867072,120540.0,120530.0,0.71695336]
[1759431432132,1.18630536,120540.0,120530.0,0.71695336]
[1759431433424,0.1048789,120530.0,120520.0,0.03692]
[1759431433732,0.1048789,120530.0,120520.0,0.71695336]
[1759431433929,0.8669589,120530.0,120520.0,0.71695336]
[1759431434226,1.18619226,120530.0,120520.0,0.71695336]
[1759431434434,0.1048789,120530.0,120520.0,1.03618672]
[1759431434632,0.8449889,120530.0,120520.0,1.03618672]
[1759431435327,0.8669589,120530.0,120520.0,1.03618672]
[1759431435730,0.1048789,120530.0,120520.0,1.03618672]
[1759431436034,0.8673189,120530.0,120520.0,1.03618672]
[1759431436234,0.8673189,120530.0,120520.0,1.11910242]
[1759431436826,0.0829089,120530.0,120520.0,1.51910242]
[1759431437234,0.0829089,120530.0,120520.0,1.57865052]
[1759431437634,0.8451751,120550.0,120520.0,1.57865052]
[1759431437635,0.0829078,120540.0,120530.0,0.1198274]
[1759431437835,0.0828882,120560.0,120530.0,0.1198274]
[1759431437836,0.8451792,120550.0,120540.0,0.03692]
[1759431438034,0.8451792,120550.0,120540.0,1.03618672]
[1759431438235,0.0828992,120550.0,120540.0,1.11908872]
[1759431438437,0.0828992,120550.0,120540.0,1.51908872]
[1759431438931,0.0828992,120550.0,120540.0,0.79772]
[1759431439132,0.1048692,120550.0,120540.0,1.43618672]
[1759431439534,0.10498223,120580.0,120570.0,0.03692]
[1759431439733,0.86754223,120580.0,120570.0,0.71695336]
[1759431440131,0.08301223,120580.0,120570.0,1.11906812]
[1759431440335,0.08301223,120580.0,120570.0,1.88166812]
[1759431440536,0.08301223,120580.0,120570.0,2.28166812]
[1759431440732,0.08301223,120580.0,120570.0,2.29004898]
[1759431441536,0.0285656,120590.0,120580.0,0.0828745]
[1759431441746,0.1114332,120590.0,120580.0,1.43829458]
[1759431441941,2.4456524,120640.0,120630.0,0.02299]
[1759431441942,0.12695284,120640.0,120630.0,0.02299]
[1759431442136,0.48311974,120650.0,120630.0,0.71695336]
[1759431442137,0.3608,120650.0,120630.0,0.71695336]
[1759431442337,0.42402976,120650.0,120640.0,0.69396336]
[1759431442542,0.1048033,120640.0,120630.0,0.35615336]
[1759431442850,0.1048033,120640.0,120630.0,0.71695336]
[1759431443048,0.1048033,120640.0,120630.0,0.35615336]
[1759431443845,1.19796666,120640.0,120630.0,0.02299]
[1759431444047,1.59796666,120640.0,120630.0,0.34222336]
[1759431444242,1.59796666,120640.0,120620.0,0.69396336]
[1759431444243,0.1058402,120630.0,120620.0,0.71592336]
[1759431444549,0.1177102,120630.0,120620.0,0.71592336]
[1759431444751,0.43694356,120630.0,120620.0,0.71592336]
[1759431445144,0.1058402,120630.0,120620.0,0.71592336]
[1759431445346,0.1058402,120630.0,120620.0,1.03515672]
[1759431445649,0.8703202,120630.0,120620.0,1.03515672]
[1759431445845,0.8473202,120630.0,120620.0,1.03515672]
[1759431446246,0.8473202,120630.0,120620.0,0.79506612]
[1759431446853,0.8473571,120640.0,120630.0,0.03503]
[1759431447048,0.8473571,120640.0,120630.0,0.79420612]
[1759431447348,0.8705671,120640.0,120630.0,0.39583]
[1759431447744,0.5233271,120640.0,120630.0,0.02141]
[1759431447943,0.1060502,120630.0,120620.0,0.39614]
[1759431448444,0.0828402,120630.0,120620.0,0.79451612]
[1759431448939,0.1060502,120630.0,120620.0,0.79451612]
[1759431450353,0.0828402,120630.0,120620.0,0.79451612]
[1759431450654,0.1060502,120630.0,120620.0,0.39614]
[1759431450846,0.1060502,120630.0,120620.0,0.79451612]
[1759431451444,0.0828402,120630.0,120620.0,0.79451612]
[1759431452453,0.0828402,120630.0,120620.0,0.39614]
[1759431452750,0.0828402,120630.0,120620.0,0.87736312]
[1759431453348,0.805918,120650.0,120640.0,0.03503]
[1759431453654,0.869958,120650.0,120640.0,0.43340612]
[1759431453849,0.082824,120660.0,120640.0,0.87703942]
[1759431454043,0.3608,120680.0,120650.0,1.2428964]
[1759431454247,0.00078612,120710.0,120690.0,0.01362]
[1759431454448,0.08357142,120710.0,120700.0,1.56392612]
[1759431454852,0.08357142,120710.0,120700.0,0.79420612]
[1759431455158,0.082776,120730.0,120720.0,0.01362]
[1759431455446,0.082776,120730.0,120720.0,1.62159962]
[1759431455648,0.0827686,120740.0,120730.0,0.03503]
[1759431455847,0.0827686,120740.0,120730.0,0.79420612]
[1759431456040,0.0827686,120740.0,120730.0,1.19420612]
[1759431456245,0.1059816,120730.0,120720.0,0.03503]
[1759431456454,0.1059816,120730.0,120720.0,0.02141]
[1759431456856,0.1059816,120730.0,120710.0,0.77279612]
[1759431456857,0.0827784,120720.0,120710.0,0.37442]
[1759431457057,0.1059953,120710.0,120700.0,0.03503]
[1759431457951,0.5059953,120710.0,120700.0,0.02141]
[1759431458149,0.1060021,120700.0,120690.0,0.79420612]
[1759431458760,0.8776821,120700.0,120690.0,0.39583]
[1759431459153,0.0827921,120700.0,120690.0,0.79420612]
[1759431459954,0.0827921,120700.0,120690.0,1.25951797]
[1759431460254,0.0827853,120710.0,120700.0,0.03503]
[1759431460455,0.1059953,120710.0,120700.0,0.39583]
[1759431460662,0.1059953,120710.0,120700.0,0.38221]
[1759431460960,0.1059953,120710.0,120700.0,0.02141]
[1759431461558,0.8780753,120710.0,120700.0,0.03503]
[1759431461761,0.8780753,120710.0,120700.0,0.39583]
[1759431461965,0.8780753,120710.0,120700.0,0.03503]
[1759431462168,0.1060021,120700.0,120690.0,0.39583]
[1759431462467,0.106009,120690.0,120680.0,0.39583]
[1759431462663,0.1060158,120680.0,120670.0,0.39583]
[1759431464360,0.8781358,120680.0,120670.0,0.03503]
[1759431465270,0.8781358,120680.0,120660.0,0.00010023]
[1759431465271,0.1060227,120670.0,120660.0,0.00010023]
[1759431465458,0.1060227,120670.0,120660.0,0.38231023]
[1759431465764,0.1060227,120670.0,120660.0,0.39593023]
[1759431465960,0.8547727,120670.0,120660.0,0.39593023]
[1759431466561,0.8779827,120670.0,120660.0,0.39593023]
[1759431466865,0.1060227,120670.0,120660.0,0.39593023]
[1759431467066,0.0828127,120670.0,120660.0,1.14170252]
[1759431467269,0.1060227,120670.0,120660.0,0.39593023]
[1759431468070,0.7722,120670.0,120660.0,1.14170252]
[1759431468573,0.8313127,120670.0,120660.0,1.14170252]
[1759431469065,0.0828127,120670.0,120660.0,1.22452212]
[1759431469269,0.0828127,120670.0,120660.0,0.74170252]
[1759431469874,0.0828127,120670.0,120660.0,0.39593023]
[1759431470072,0.0828127,120670.0,120660.0,0.74170252]
[1759431470471,0.0828035,120690.0,120680.0,0.03503]
[1759431470670,0.0828035,120690.0,120680.0,0.74160229]
[1759431471080,0.0828035,120690.0,120680.0,0.39583]
[1759431471373,0.0828035,120690.0,120680.0,0.74160229]
[1759431471574,0.0827984,120700.0,120690.0,0.03503]
[1759431471876,0.0827984,120700.0,120690.0,0.74160229]
[1759431472072,0.8553984,120700.0,120690.0,0.74160229]
[1759431472374,0.8553584,120700.0,120690.0,0.74160229]
[1759431472674,0.0827984,120700.0,120690.0,0.82440139]
[1759431472870,0.8552384,120700.0,120690.0,0.82440139]
[1759431473070,0.8552384,120700.0,120690.0,0.4786291]
[1759431473271,0.0827984,120700.0,120690.0,0.82440139]
[1759431474167,0.0827984,120700.0,120690.0,0.74160229]
[1759431474369,0.1060084,120700.0,120690.0,0.39583]
[1759431474570,0.4668084,120700.0,120690.0,0.03503]
[1759431474871,0.1060227,120670.0,120660.0,0.39593023]
[1759431475062,0.0828127,120670.0,120660.0,0.74170252]
[1759431475262,0.8552927,120670.0,120660.0,0.74170252]
[1759431475768,0.0828127,120670.0,120660.0,0.82452212]
[1759431476072,0.1038327,120670.0,120660.0,0.74170252]
[1759431476367,0.0828127,120670.0,120660.0,0.74170252]
[1759431476965,0.0828059,120680.0,120660.0,0.74170252]
[1759431477171,0.082799,120690.0,120680.0,0.0366]
[1759431477474,0.082799,120690.0,120680.0,0.82597819]